Cogmind - Beta 11 @@@ ROGUE MODE // 2022.03.27 @ 01:17:56 Player: cptwinky Result: Self-destructed Performance ------------- Evolutions (0) 0 Regions Visited (4) 800 Robots Destroyed (34) 170 Value Destroyed (869) 869 Prototype IDs (0) 0 Alien Tech Used (0) 0 Bonus (0) 0 TOTAL SCORE: 1839 Bonus ------- None Cogmind --------- Core Integrity 40/250 Matter 252/300 Energy 265/265 System Corruption 0% Temperature Cool (0) Movement Treading (152) Location -9/Mines Parts ------- > --- POWER (1) -------- Improved Ion Engine > --- PROPULSION (2) --- Light Treads Advanced Treads > --- UTILITY (2) ------ Improved Heat Sink Large Storage Unit > --- WEAPON (2) ------- Beam Cannon Rocket Launcher > --- INVENTORY (15) --- Reinforced Ion Engine Nuclear Core Fission Core Light Fission Core Aluminum Leg Wheel High-capacity Storage Unit Structural Scanner Improved Trap Extractor (0/6) Light Assault Rifle Missile Launcher Datajack Plasma Flamer Heavy Hammer Peak State ------------ > --- POWER ------------ Improved Ion Engine > --- PROPULSION ------- Light Treads Advanced Treads > --- UTILITY ---------- Improved Heat Sink Large Storage Unit > --- WEAPON ----------- Beam Cannon High-powered Shotgun > --- INVENTORY -------- Reinforced Ion Engine Nuclear Core Fission Core Light Fission Core Aluminum Leg Wheel High-capacity Storage Unit Structural Scanner Improved Trap Extractor Light Assault Rifle Rocket Launcher Missile Launcher Datajack Plasma Flamer Heavy Hammer [Rating: 17] Favorites ----------- Power Light Ion Engine Engine Light Ion Engine Propulsion Light Treads Treads Light Treads Leg Aluminum Leg Utility Large Storage Unit Device Heat Sink Storage Large Storage Unit Protection Propulsion Shielding Weapon EM Pulse Gun Energy Gun EM Pulse Gun Energy Cannon Beam Cannon Ballistic Gun High-powered Shotgun Launcher Rocket Launcher Build | -11 -10 -10 -10 -9 ------- Run | Scr Mat Min Exi Min Slots Evolved . | . . . . . Power . | . . . . . Propulsion . | . . . . . Utility . | . . . . . Weapon . | . . . . . Parts Attached 26 | 3 7 6 1 9 Power 3 | . 1 . . 2 Engine 3 | . 1 . . 2 Core . | . . . . . Reactor . | . . . . . Propulsion 5 | 2 1 1 . 1 Treads 5 | 2 1 1 . 1 Leg . | . . . . . Wheel . | . . . . . Hover . | . . . . . Flight . | . . . . . Utility 5 | . 1 1 1 2 Device 2 | . . . . 2 Storage 2 | . . 1 1 . Processor . | . . . . . Hackware . | . . . . . Protection 1 | . 1 . . . Artifact . | . . . . . Weapon 13 | 1 4 4 . 4 Energy Gun 6 | 1 4 1 . . Energy Cannon 1 | . . . . 1 Ballistic Gun 3 | . . 2 . 1 Ballistic Cannon . | . . . . . Launcher 3 | . . 1 . 2 Special Weapon . | . . . . . Impact Weapon . | . . . . . Slashing Weapon . | . . . . . Piercing Weapon . | . . . . . Special Melee Weapon . | . . . . . Unidentified Prototypes . | . . . . . Parts Lost 10 | . 3 4 . 3 Power 1 | . 1 . . . Propulsion 2 | . . 1 . 1 Utility 1 | . . 1 . . Weapon 6 | . 2 2 . 2 Highest Loss Streak 3 | . 3 2 . 1 To Critical Strikes . | . . . . . Average Slot Usage (%) 89 | . 92 89 85 90 Engine 14 | . 14 14 14 14 Treads 28 | . 28 28 28 28 Storage 14 | . 14 14 14 14 Protection 3 | . 6 4 . . Energy Gun 16 | . 27 16 14 6 Energy Cannon 1 | . . . . 7 Ballistic Gun 10 | . . 11 14 13 Naked Turns . | . . . . . Heaviest Build 34 | 10 13 29 28 34 Greatest Support 42 | 40 40 40 40 42 Greatest Overweight (x) . | . . . . . Average Overweight (x) . | . . . . . Largest Inventory Capacity 15 | 8 8 15 15 15 Average Capacity 11 | 8 8 10 15 15 Most Carried 15 | 6 8 10 14 15 Average Carried 9 | 6 6 7 12 14 Final Capacity 15 | 8 8 15 15 15 Final Carried 14 | 6 6 10 14 14 Class Distribution -------------------- 100% | Mutant Dominant Class ---------------- Mutant | -10/Materials Mutant | -10/Mines Mutant | -10/Exiles Mutant | -9/Mines Resources | -11 -10 -10 -10 -9 ----------- Run | Scr Mat Min Exi Min Matter Collected 599 | 222 68 144 . 165 Remotely . | . . . . . Salvage Created 1092 | . 513 250 . 329 Parts 60 | . 27 14 . 19 Haulers Intercepted 1 | . 1 . . . Recyclers Shooed . | . . . . . Parts Field Recycled . | . . . . . Retrieved Matter . | . . . . . Parts Self-Destructed . | . . . . . Prevented . | . . . . . Kills | -11 -10 -10 -10 -9 ------- Run | Scr Mat Min Exi Min Combat Hostiles Destroyed 39 | . 10 9 . 20 Guns 18 | . 9 7 . 2 Cannons 5 | . . . . 5 AOE 14 | . . 1 . 13 Classes Destroyed 8 | . 6 1 . 1 Tunneler 2 | . 1 1 . . Hauler 1 | . 1 . . . Mechanic 1 | . 1 . . . Watcher 1 | . 1 . . . Swarmer 10 | . 3 3 . 4 Grunt 18 | . 7 5 . 6 Duelist 1 | . . . . 1 Assembled 10 | . . 1 . 9 Best Kill Streak 9 | . 3 4 . 9 Combat Bots Only 9 | . 3 3 . 9 Max Kills in Single Turn 4 | . 2 2 . 4 Gunslinging 1 | . 1 . . . Exploded 4 | . . 1 . 4 Melee . | . . . . . Uniques/NPCs Destroyed . | . . . . . Combat | -11 -10 -10 -10 -9 -------- Run | Scr Mat Min Exi Min Damage Taken 1347 | . 518 329 . 500 Core 210 | . 47 37 . 126 Absorbed by Shields . | . . . . . Redirected to Shielding 52 | . 22 30 . . Regen/Repaired (Parts) 92 | . 92 . . . Core Remaining (%) 100 | 100 . . . . Volleys Fired 91 | . 41 25 . 25 Largest 2 | . 2 2 . 2 Hottest 85 | . 80 80 . 85 Shots Fired 174 | . 81 47 . 46 Gun 146 | . 81 44 . 21 Cannon 21 | . . . . 21 Launcher 7 | . . 3 . 4 Special . | . . . . . Kinetic 36 | . . 15 . 21 Thermal 21 | . . . . 21 Explosive 7 | . . 3 . 4 Electromagnetic 110 | . 81 29 . . Robot Hit Streak 8 | . 6 8 . 6 Robot Miss Streak 4 | . 4 4 . 4 Penetration Max . | . . . . . Secondary Targets 7 | . 4 3 . . Max Gunslinging Chain 1 | . 1 1 . . Shots Hit Robots 111 | . 49 32 . 30 Core Hits 70 | . 22 15 . 33 Critical Kills . | . . . . . Critical Parts Destroyed 1 | . . . . 1 Critical Strikes 4 | . 2 1 . 1 Destroy 1 | . . . . 1 Corrupt 3 | . 2 1 . . Melee Attacks . | . . . . . Impact . | . . . . . Slashing . | . . . . . Piercing . | . . . . . Sneak Attacks . | . . . . . Combat Hostiles . | . . . . . Follow-up Attacks . | . . . . . Damage Inflicted 2759 | . 913 617 . 1229 Guns 1541 | . 692 545 . 304 Cannons 231 | . . . . 231 Explosions 968 | . 221 64 . 683 Melee . | . . . . . Ramming 19 | . . 8 . 11 Kinetic 601 | . . 297 . 304 Thermal 516 | . 221 64 . 231 Explosive 683 | . . . . 683 Electromagnetic 940 | . 692 248 . . Impact . | . . . . . Slashing . | . . . . . Piercing . | . . . . . Highest Corruption . | . . . . . Average Corruption . | . . . . . Corruption Purged . | . . . . . Corruption Blocked . | . . . . . Overload Shots . | . . . . . Overflow Damage 72 | . . . . 72 Projectiles . | . . . . . Explosions 72 | . . . . 72 Melee . | . . . . . Knockbacks . | . . . . . Impact . | . . . . . Kinetic . | . . . . . Secondary . | . . . . . Self-Inflicted Damage 133 | . . 34 . 99 Shots 4 | . . 1 . 3 Rammed 3 | . . 1 . 2 Targets Rammed 3 | . . 1 . 2 Kicked . | . . . . . Crushed . | . . . . . Highest Temperature 242 | . 242 142 . 204 Average Temperature 75 | . 95 49 . 58 Received Heat Transfer 561 | . 264 141 . 156 Siege Activations . | . . . . . Robots Corrupted 2 | . 1 1 . . Combat Hostiles 2 | . 1 1 . . Parts Fried 4 | . 2 2 . . Impact Corruptions . | . . . . . Robots Melted . | . . . . . Combat Hostiles . | . . . . . Parts Melted . | . . . . . Heat Transferred 831 | . 350 . . 481 Parts Sabotaged . | . . . . . Parts Stolen . | . . . . . Parts Stripped . | . . . . . Power Chain Reactions 5 | . 4 1 . . Missiles Intercepted . | . . . . . Alert | -11 -10 -10 -10 -9 ------- Run | Scr Mat Min Exi Min Peak Influence 374 | . 374 197 . 251 Initial 67 | . . 67 . . Average 92 | . 174 66 . 85 Maximum Alert Level 1 | . 1 1 . 1 Low Security (%) 89 | 100 65 99 . 84 Level 1 10 | . 34 . . 15 Level 2 . | . . . . . Level 3 . | . . . . . Level 4 . | . . . . . Level 5 . | . . . . . High Security . | . . . . . Max Security . | . . . . . Squads Dispatched 1 | . 1 . . . Investigation 1 | . 1 . . . Extermination . | . . . . . Reinforcement . | . . . . . Assault . | . . . . . Garrison . | . . . . . Intercept . | . . . . . Searches Triggered . | . . . . . Construction Impeded . | . . . . . Haulers Reinforced . | . . . . . Active Scanning Responses . | . . . . . Cargo Convoy Interrupts . | . . . . . Stealth | -11 -10 -10 -10 -9 --------- Run | Scr Mat Min Exi Min Distress Signals 1 | . 1 . . . Communications Jammed . | . . . . . Distress Signals . | . . . . . Times Spotted 61 | . 16 11 . 34 Peak Tracking Total 10 | . 5 5 . 10 Tactical Retreats 3 | . 2 . . 1 Traps | -11 -10 -10 -10 -9 ------- Run | Scr Mat Min Exi Min Traps Triggered . | . . . . . Indirectly . | . . . . . Trap Hack Attempts . | . . . . . Triggered . | . . . . . Disarmed . | . . . . . Reprogrammed . | . . . . . Reused . | . . . . . Traps Extracted . | . . . . . Installed . | . . . . . Triggered . | . . . . . Machines | -11 -10 -10 -10 -9 ---------- Run | Scr Mat Min Exi Min Machines Disabled . | . . . . . Max in Single Turn . | . . . . . Machines Sabotaged . | . . . . . Garrisons Compromised . | . . . . . Overloaded Fab Kills . | . . . . . Hacking | -11 -10 -10 -10 -9 --------- Run | Scr Mat Min Exi Min Machines Accessed 7 | . 4 1 1 1 Terminals 3 | . 2 . . 1 Fabricators . | . . . . . Repair Stations 1 | . 1 . . . Recycling Units 1 | . 1 . . . Scanalyzers . | . . . . . Garrison Access . | . . . . . Total Hacks 17 | . 13 1 1 2 Successful 10 | . 7 1 1 1 Failed 6 | . 5 . . 1 Catastrophic . | . . . . . Database Lockouts 1 | . 1 . . . Manual 8 | . 7 . . 1 Terminals 11 | . 9 . . 2 Fabricators . | . . . . . Repair Stations 2 | . 2 . . . Recycling Units 2 | . 2 . . . Scanalyzers . | . . . . . Garrison Access . | . . . . . Terminal Hacks 6 | . 3 1 1 1 Record 1 | . . . 1 . Robot Analysis 4 | . 3 . . 1 Open Door 1 | . . 1 . . Fabricator Hacks . | . . . . . Repair Station Hacks 2 | . 2 . . . Scan Component 1 | . 1 . . . Repair 1 | . 1 . . . Recycling Unit Hacks 1 | . 1 . . . Retrieve Components 1 | . 1 . . . Scanalyzer . | . . . . . Garrison Access Hacks . | . . . . . Unauthorized Hacks 1 | . 1 . . . Terminals . | . . . . . Fabricators . | . . . . . Repair Stations . | . . . . . Recycling Units 1 | . 1 . . . Tunnel 1 | . 1 . . . Scanalyzers . | . . . . . Garrison Access . | . . . . . Data Cores Recovered . | . . . . . Used . | . . . . . Hacking Detections 4 | . 3 . . 1 Full Trace Events 1 | . 1 . . . Feedback Events . | . . . . . Feedback Blocked . | . . . . . Robot Schematics Acquired . | . . . . . Robots Built . | . . . . . Authchips . | . . . . . Time . | . . . . . Total Robot Build Rating . | . . . . . Part Schematics Acquired . | . . . . . Parts Built . | . . . . . Authchips . | . . . . . Time . | . . . . . Total Part Build Rating . | . . . . . Parts Repaired 1 | . 1 . . . Time 26 | . 26 . . . Parts Recycled . | . . . . . Recycled Matter . | . . . . . Retrieved Matter . | . . . . . Retrieved Components 9 | . 9 . . . Parts Scanalyzed . | . . . . . Part Schematics Acquired . | . . . . . Parts Damaged . | . . . . . Bothacking | -11 -10 -10 -10 -9 ------------ Run | Scr Mat Min Exi Min Used RIF Installer . | . . . . . Robots Hacked . | . . . . . Non-combat . | . . . . . Combat . | . . . . . Robot Hacks Applied . | . . . . . Relay Couplers Released . | . . . . . Fabnet Peak Effective % . | . . . . . Robots Rewired . | . . . . . Allies Hacked . | . . . . . Hacks Repelled . | . . . . . Allies | -11 -10 -10 -10 -9 -------- Run | Scr Mat Min Exi Min Total Allies . | . . . . . Largest Group . | . . . . . Highest-Rated Group . | . . . . . Highest-Rated Ally . | . . . . . Total Orders . | . . . . . Ally Attacks . | . . . . . Total Damage . | . . . . . Kills . | . . . . . Allies Corrupted . | . . . . . Allies Melted . | . . . . . Intel | -11 -10 -10 -10 -9 ------- Run | Scr Mat Min Exi Min Robot Analysis Total 4 | . 3 . . 1 Derelict Logs Recovered 2 | . . 1 . 1 Drone Launches . | . . . . . Drone Recoveries . | . . . . . Exploration | -11 -10 -10 -10 -9 ------------- Run | Scr Mat Min Exi Min Turns Passed 2567 | 15 449 1231 394 478 Spaces Moved 1322 | 7 174 667 243 231 Core . | . . . . . Treads 1322 | 7 174 667 243 231 Legs . | . . . . . Wheels . | . . . . . Hover . | . . . . . Flight . | . . . . . Fastest Speed 152 | 160 160 160 160 152 Average Speed 159 | 160 160 160 160 157 Slowest Speed 160 | 160 160 160 160 160 Overloaded Moves . | . . . . . Propulsion Burnouts . | . . . . . Robots Hopped . | . . . . . Cave-ins Triggered . | . . . . . Exploration Rate (%) 49 | 2 44 99 55 48 Regions Visited 4 Branch Regions 3 Pre-discovered Areas 4 | . 1 1 1 1 Known Exits Taken . | . . . . . Unknown Exits Taken 4 | 1 1 1 1 . Scrap Searched 5 | . . 2 . 3 Spaces Dug 42 | . . . . 42 Terrain Destroyed 87 | . 8 24 . 55 Melee . | . . . . . Projectile . | . . . . . AOE 87 | . 8 24 . 55 Terrain Rammed . | . . . . . Walls Destroyed . | . . . . . Machines Disabled . | . . . . . Actions | -11 -10 -10 -10 -9 --------- Run | Scr Mat Min Exi Min Total 1601 | 9 263 783 249 297 Wait 130 | . 36 74 . 20 Move 1318 | 6 173 666 242 231 Hop . | . . . . . Pick Up 21 | . 4 8 4 5 Fast Attach 7 | . 3 1 1 2 Attach 10 | . 4 3 . 3 Detach 3 | . . 1 1 1 Swap 9 | 3 . 2 . 4 Drop 9 | . 2 2 1 4 Fire 91 | . 41 25 . 25 Melee . | . . . . . Ram . | . . . . . Kick . | . . . . . Crush 3 | . . 1 . 2 Escape Stasis . | . . . . . Rewire . | . . . . . Trap . | . . . . . Miscellaneous . | . . . . . Route ------- -11/Scrapyard -10/Materials (discovered 2 exits: [*Mat] / *Min) -10/Mines (discovered 3 exits: [*Mat x2] / *Exi) -10/Exiles -9/Mines (discovered 1 exit: [*Mat]) History --------- Turn | Location | Event 6 | -11/Scrapyard | Discovered new exit (range 3) 16 | -11/Scrapyard | Entered Materials 303 | -10/Materials | Build established: Mutant 340 | -10/Materials | Discovered new exit (range 15) 353 | -10/Materials | Lost 3 parts (1p2w) 396 | -10/Materials | Discovered new exit (range 16) 404 | -10/Materials | Central database locked down 440 | -10/Materials | Repaired Lgt. Treads 465 | -10/Materials | Entered Mines 501 | -10/Mines | Discovered new exit (range 11) 504 | -10/Mines | Learned 2 Materials zone layouts 530 | -10/Mines | Deemed a non-threat by the Exiles lab entrance 530 | -10/Mines | Discovered new exit (range 5) 600 | -10/Mines | Met a Derelict who couldn't figure out how to use a Trap Extractor 787 | -10/Mines | Excavation squad dispatched 787 | -10/Mines | A large section of the Mines collapsed 1006 | -10/Mines | Learned location of Storage (-7) 1054 | -10/Mines | Received a Rocket Launcher from a helpful Derelict 1108 | -10/Mines | Discovered new exit (range 16) 1696 | -10/Mines | Entered Exiles 1740 | -10/Exiles | Met 8R-AWN 1800 | -10/Exiles | Met EX-HEX 1894 | -10/Exiles | Met EX-DEC 1924 | -10/Exiles | Learned location of Zion (-6) 2073 | -10/Exiles | Discovered new exit (range 14) 2090 | -10/Exiles | Entered Mines 2176 | -9/Mines | Discovered new exit (range 9) 2327 | -9/Mines | A weapon hastily lodged in a ceiling crevice suddenly fell to the ground 2364 | -9/Mines | Core integrity fell below 50% 2549 | -9/Mines | Assembled infested the area 2568 | -9/Mines | Self-destructed Last Messages --------------- 02460_ Acquired 5 matter. 02480_ Slammed into K-01 Serf. 02517_ G-34 Mercenary destroyed. 02523_ G-47 Trooper destroyed. 02528_ Acquired 22 matter. 02534_ Dropped Heat Sink. 02549_ ALERT: Infestation in the mines, dispatching Demolisher response squad. 02559_ Hpw. Shotgun destroyed. 02562_ as-41711 destroyed. 02562_ as-87924 destroyed. 02564_ as-27428 destroyed. 02564_ Destroyed Asb. F-torch. 02564_ as-75904 destroyed. 02564_ as-43655 destroyed. 02564_ as-17474 destroyed. 02565_ U-05 Engineer builds a Wall. 02566_ as-48463 destroyed. 02566_ as-16778 destroyed. 02566_ as-46289 destroyed. Map ----- +----------------------------------------------------+ | | | | | | | | | | | | | | | | | ?????????????????????????????????????????????????? | | ?????????????????????????????????????????????????? | | ?????????????????????????????????????????????????? | | ?????????????????????????????????????????????????? | | ?????????????????????##??????????????????????????? | | ????????????????????? ??????????????????????????? | | ?????????????????????# ??????????????????????????? | | ?????????????????????# ??????????????????????????? | | ?????????????a???????# ??????????????????????????# | | ?????????????a ???#### ##????????????????????????# | | ?????????????? a### ????????????????????????# | | ??????????????? aa %% ????????????????????????# | | ????????????????? a a ##???####???????????????# | | ??????????????????# ##?## ##??????????????# | | ??????????????????# %% ### ##?????????????# | | ??????????????????# # ###???????????# | | ???????????????????# a #???????????# | | ???????????????????# @ #???????????# | | ???????????????????# # ## ##!#???????????# | | ???????????????????## # # #######%#???????????# | | ??????????????????? ? #?????#*#???????????? | | ??????????????????#######?####?????#%#???????????? | | ???????????????????????????????????# #???????????? | | ???????????????????????????????????# #???????????? | | ???????????????????????????????????# #???????????? | | ???????????????????????????????????# #???????????? | | ???????????????????????????????????# #???????????? | | ???????????????????????????????????# #???????????? | | ???????????????????????????????????# #???????????? | | ???????????????????????????????????# #???????????? | | ???????????????????????????????????# #???????????? | | ??????????????????????????????###### #???????????? | | ??????????????????????????????# #???????????? | | ??????????????????????????????# #####???????????? | | ????????????????????########### #???????????????? | | ????????????????????#[%=%*%!!! #???????????????? | | ????????????????????#=######### #???????????????? | | ?????????????????????????????## #???????????????? | | ????????????????????????###### ##??????????????? | | ???????????????????????## #??????????????? | | ??????????????????????## #??????????????? | | ?????????????????????## ##??????????????? | +----------------------------------------------------+ Best States ------------- Heat Dissipation 39 Energy Generation 12 Energy Capacity 265 Matter Stores 300 Matter Capacity 300 Sight Range 16 Terrain Scan Density 10 Propulsion Shielding 33 Evasion (%) 40 Recoil Reduction 2 Item Schematics ----------------- None Robot Schematics ------------------ None Fabricated ------------ Nothing Alien Tech Used ----------------- None Achievements -------------- None Challenges ------------ None Game ------ Seed CoilSystemSource Manual? 0 Play Time 00:09:16 Cumulative 1088.7 hours Start 2022.03.27 @ 01:08:45 End 2022.03.27 @ 01:17:56 Sessions 1 Manual Loads 0 Difficulty Rogue Special Mode None Game No. 767 Rogue 763 Adventurer 4 Explorer 0 Win Type - Total 119 Types 91/9/8/5/2/0/0/2/2 Lore% 94 Gallery% 97 Achievement% 97 Wizard Run 0 Options --------- ASCII 0 Keyboard 1 Movement Vi Keybinds 0 Fullscreen 0 Font 16/Terminus Map View 76x50 Tactical HUD 1 Map Filters NONE Filters NONE Steam 1 RUN: d5cdfb63-7270-45a2-bf49-f27c3ed4eca8